bitfinex-derivatives/quotes_ETHF0:USTF0_20250831
["timestamp","ask_amount","ask_price","bid_price","bid_amount"]
[1756601671561,0.6248,4453.9,4453.3,3.2078]
[1756601672757,0.215,4453.4,4453.3,3.2078]
[1756601672962,1.0,4455.0,4453.3,3.2078]
[1756601672963,1.0,4455.0,4454.1,0.5999]
[1756601673163,1.0,4455.0,4454.1,3.8077]
[1756601673469,0.256,4454.7,4454.1,3.8077]
[1756601675364,0.3698,4454.8,4454.1,3.8077]
[1756601675763,0.255,4454.3,4454.1,3.8077]
[1756601676170,2.3848,4454.2,4454.1,3.4159]
[1756601676667,2.3848,4454.2,4454.1,3.8077]
[1756601677063,1.8,4454.2,4454.1,3.8077]
[1756601677270,2.4248,4454.2,4454.1,3.8077]
[1756601677567,2.6852,4454.2,4454.1,3.4159]
[1756601678369,2.4302,4454.2,4453.6,3.2078]
[1756601678566,0.6471,4453.7,4453.6,3.2078]
[1756601678764,0.9011,4453.7,4453.6,3.2078]
[1756601679364,2.1867,4454.2,4453.6,3.4753]
[1756601679568,1.8,4454.2,4454.1,0.6594]
[1756601679871,2.054,4454.2,4454.1,0.6594]
[1756601680266,2.7011,4454.2,4454.1,0.6594]
[1756601680467,0.2604,4453.7,4453.6,3.2078]
[1756601680668,0.9011,4453.7,4453.6,3.2078]
[1756601681370,0.3867,4453.7,4453.6,3.2078]
[1756601681672,0.6407,4453.7,4453.6,3.8672]
[1756601681870,0.254,4453.7,4453.6,3.8672]
[1756601682067,1.8,4454.2,4453.6,3.8672]
[1756601682068,2.1867,4454.2,4453.6,3.8672]
[1756601682373,0.6471,4453.7,4453.6,3.2078]
[1756601682569,0.6471,4453.7,4453.3,0.3919]
[1756601682570,0.6471,4453.2,4453.1,3.2078]
[1756601682774,0.9011,4453.2,4453.1,3.2078]
[1756601682975,4.9011,4453.2,4453.1,3.2078]
[1756601683470,0.2604,4452.7,4452.6,3.2078]
[1756601683669,0.9011,4452.7,4452.6,3.2078]
[1756601684269,0.2604,4452.1,4452.0,3.2078]
[1756601684573,0.9011,4452.1,4452.0,3.2078]
[1756601685163,0.9001,4452.1,4452.0,3.2078]
[1756601685574,0.9001,4452.1,4452.0,3.8672]
[1756601685874,0.253,4452.1,4452.0,3.8672]
[1756601686567,0.3867,4452.6,4452.0,3.8672]
[1756601686774,0.253,4452.5,4452.0,3.8672]
[1756601686968,0.6471,4452.1,4452.0,3.2078]
[1756601687762,4.0,4452.1,4451.3,3.2078]
[1756601687962,0.2604,4451.4,4451.0,0.3919]
[1756601688171,0.2604,4451.4,4450.6,3.2078]
[1756601688172,0.6397,4451.3,4451.2,0.6594]
[1756601688369,0.253,4451.3,4451.2,0.6594]
[1756601688977,0.9001,4451.3,4451.2,0.6594]
[1756601689370,0.253,4451.3,4451.2,0.6594]
[1756601689669,0.9001,4451.3,4451.2,0.2675]
[1756601689874,0.5134,4451.3,4451.1,3.2078]
[1756601690074,0.6471,4451.2,4451.1,3.2078]
[1756601690472,3.2078,4452.3,4451.1,3.8672]
[1756601690676,0.6387,4452.2,4451.6,3.5997]
[1756601690881,0.252,4452.1,4451.6,3.2078]
[1756601691080,0.252,4452.0,4451.9,0.6594]
[1756601691579,0.6471,4452.0,4451.9,0.2675]
[1756601691780,0.5124,4452.0,4451.9,0.6594]
[1756601692171,0.2604,4452.0,4451.9,0.6594]
[1756601692372,0.5124,4452.0,4451.9,0.6594]
[1756601692571,0.8991,4452.0,4451.9,0.6594]
[1756601693177,0.8991,4452.0,4451.9,0.2675]
[1756601693975,0.3867,4451.9,4451.0,0.3919]
[1756601694169,0.6471,4451.0,4450.9,3.2078]
[1756601694376,0.8991,4451.0,4450.9,3.2078]
[1756601695273,0.8991,4451.0,4450.4,0.3919]
[1756601695470,0.252,4451.0,4450.2,3.2078]
[1756601695674,0.6471,4450.3,4450.2,3.2078]
[1756601695871,0.8991,4450.3,4450.2,3.2078]
[1756601696070,0.5124,4450.3,4449.7,3.2078]
[1756601696281,0.2604,4449.8,4449.7,3.2078]
[1756601696583,0.3867,4451.2,4450.6,0.2675]
[1756601696783,0.6387,4450.9,4450.8,0.2675]
[1756601697083,0.6387,4450.9,4450.8,0.6594]
[1756601697277,32.7457,4451.3,4450.8,0.6594]
[1756601697477,0.253,4451.2,4451.1,0.2675]
[1756601697681,0.6397,4451.2,4451.1,0.6594]
[1756601697982,0.9001,4451.2,4451.1,0.6594]
[1756601698681,0.9001,4451.2,4451.1,0.2675]
[1756601699384,32.359,4451.3,4451.2,0.2675]
[1756601699682,32.611,4451.3,4451.2,0.6594]
[1756601699883,33.2581,4451.3,4450.7,3.5997]
[1756601700083,0.2604,4450.8,4450.7,3.2078]
[1756601700283,0.6471,4450.3,4450.2,3.2078]
[1756601700479,0.8991,4450.3,4450.2,3.8672]
[1756601700986,0.252,4450.3,4450.2,3.8672]
[1756601701780,0.8991,4450.3,4450.2,3.2078]
[1756601701981,4.8991,4450.3,4449.2,0.3919]
[1756601702182,0.3867,4449.2,4449.1,3.2078]
[1756601702385,0.3867,4449.8,4449.1,3.4753]
[1756601702688,0.252,4449.7,4449.6,0.6594]
[1756601703086,3.2078,4450.4,4449.6,0.6594]
[1756601703286,0.6471,4449.7,4449.6,0.6594]
[1756601703488,0.8991,4449.7,4449.6,0.6594]
[1756601703988,0.8991,4449.7,4449.2,0.3919]
[1756601704189,0.3867,4449.6,4449.1,3.5997]
[1756601704388,0.252,4449.7,4449.1,3.5997]
[1756601704585,3.2078,4450.4,4449.5,0.6594]
[1756601704586,0.3867,4449.6,4449.5,0.6594]
[1756601704790,0.179,4449.6,4449.5,3.8672]
[1756601706180,0.3867,4450.1,4449.5,3.8672]
[1756601706390,0.251,4450.0,4449.5,3.4753]
[1756601706585,0.2604,4449.7,4449.6,0.3919]
[1756601706786,0.6471,4449.6,4449.5,3.2078]
[1756601706985,0.6471,4449.6,4449.5,3.8672]
[1756601707187,0.251,4450.0,4449.5,3.8672]
[1756601707188,0.251,4450.0,4449.9,0.6594]
[1756601707589,0.3867,4450.3,4449.9,0.6594]
[1756601707789,0.6199,4450.2,4449.5,3.2078]
[1756601708083,0.6354,4449.6,4449.5,3.2078]
[1756601708290,0.8864,4449.6,4449.5,3.2078]
[1756601711598,0.8864,4449.6,4449.5,3.4624]
[1756601711798,0.251,4449.8,4449.7,0.6477]
[1756601712903,0.8864,4449.8,4449.7,0.6477]
[1756601714798,0.8864,4449.8,4449.7,0.2546]
[1756601715199,0.3689,4449.7,4449.5,3.2078]
[1756601715403,0.6354,4449.6,4449.5,3.2078]
[1756601715705,0.6354,4449.6,4449.5,3.8555]
[1756601716594,0.6354,4449.6,4449.5,3.4624]
[1756601717192,0.6354,4449.6,4449.5,3.2078]
[1756601717794,4.49124,4449.6,4449.0,0.58329409]
[1756601717998,0.6354,4449.0,4448.9,3.2078]
[1756601718299,0.8864,4449.0,4448.9,3.2078]
[1756601718604,0.8864,4449.0,4448.5,0.58329409]
[1756601718807,0.3689,4448.9,4448.3,3.6009]
[1756601719006,0.251,4449.0,4448.3,3.8555]
[1756601719305,32.374,4449.6,4449.5,0.3931]
[1756601719505,32.625,4449.6,4449.5,0.6477]
[1756601719706,33.2604,4449.6,4449.1,0.3931]
[1756601719905,33.2604,4449.6,4449.5,0.2546]
[1756601720107,33.2604,4449.6,4449.5,0.6477]
[1756601720404,32.374,4449.6,4449.5,3.8555]
[1756601721302,3.2078,4450.4,4449.6,0.3931]
[1756601721500,0.3689,4451.4,4450.8,0.2546]
[1756601721701,0.3689,4450.8,4450.1,3.2078]
[1756601721900,0.3689,4450.8,4450.2,0.3931]
[1756601723306,0.3689,4450.8,4450.2,0.97639409]
[1756601724008,0.6354,4450.3,4450.2,0.6477]
[1756601724407,0.6354,4450.3,4450.2,1.23099409]
[1756601724614,0.2665,4450.3,4450.2,1.23099409]
[1756601724906,0.251,4450.5,4450.2,1.23099409]
[1756601724907,0.251,4450.5,4450.4,0.6477]
[1756601725304,0.3689,4450.9,4450.5,0.3931]
[1756601725512,0.251,4451.3,4451.2,0.2546]
[1756601725699,0.251,4451.3,4451.2,0.6477]
[1756601725905,0.251,4451.3,4450.9,0.58612495]
[1756601725906,0.3689,4452.2,4451.3,0.3931]
[1756601726205,0.3689,4452.2,4452.1,0.6477]
[1756601726206,0.6354,4452.2,4452.1,0.6477]
[1756601726413,0.8864,4452.2,4452.1,0.6477]
[1756601726702,0.8864,4452.2,4452.1,0.2546]
[1756601726910,0.8864,4452.2,4452.1,0.6477]
[1756601727312,0.8864,4452.2,4452.1,0.2546]
[1756601727605,0.5175,4452.2,4451.8,0.3931]
[1756601727811,0.251,4452.2,4451.8,0.3931]
[1756601728012,0.3689,4452.1,4452.0,0.6477]
[1756601728214,0.251,4452.1,4452.0,0.6477]
[1756601728603,32.374,4452.9,4452.8,0.2546]
[1756601728812,32.374,4452.9,4452.8,0.6477]
[1756601728813,33.2604,4452.9,4452.8,0.6477]
[1756601729305,33.0094,4452.9,4452.8,0.6477]
[1756601729709,32.374,4452.9,4452.8,0.6477]
[1756601729908,32.625,4452.9,4452.8,0.6477]
[1756601730109,33.2604,4452.9,4452.8,0.6477]
[1756601730309,33.2604,4452.9,4452.4,3.2078]
[1756601730512,0.6354,4452.6,4452.5,0.3931]
[1756601730816,0.3689,4452.8,4452.5,0.2546]
[1756601731010,0.3689,4452.8,4452.7,0.6477]
[1756601731209,0.6354,4452.8,4452.7,0.6477]
[1756601731410,0.3689,4452.4,4451.7,3.6009]
[1756601731716,0.5175,4452.3,4452.2,3.2078]
[1756601732014,0.8864,4452.3,4452.2,3.2078]
[1756601732415,0.8864,4452.3,4452.2,3.8555]
[1756601732614,0.8864,4452.3,4452.2,3.4624]
[1756601733011,0.8864,4452.3,4451.3,0.58593273]
[1756601733012,0.3689,4452.8,4452.0,3.2078]
[1756601733218,0.6354,4452.8,4452.7,0.2546]
[1756601733414,0.8864,4452.8,4452.7,0.2546]
[1756601733718,0.8864,4452.8,4452.7,0.6477]
[1756601734322,0.251,4452.8,4452.7,0.6477]
[1756601734515,0.6199,4452.8,4452.7,0.6477]
[1756601734916,0.8864,4452.8,4452.7,0.6477]
[1756601735112,0.251,4452.8,4452.7,0.6477]
[1756601736018,32.374,4452.9,4452.8,0.6477]
[1756601736212,0.3689,4454.1,4453.2,0.3931]
[1756601736411,0.3689,4454.1,4453.3,3.2078]
[1756601736412,0.3689,4453.9,4453.3,3.2078]
[1756601736621,0.6354,4453.4,4453.3,3.2078]
[1756601736923,0.8864,4453.4,4453.3,3.2078]
[1756601739317,0.8864,4453.4,4453.3,3.4624]
[1756601739512,0.3693,4454.4,4454.1,0.2453]
[1756601739717,0.3693,4453.9,4453.4,0.3636]
[1756601739919,0.3693,4454.1,4453.4,0.3636]
[1756601740719,0.3693,4454.1,4454.0,0.2453]
[1756601741022,0.6282,4454.1,4454.0,0.6089]
[1756601741722,0.8792,4454.1,4454.0,0.6089]
[1756601741924,0.251,4454.1,4454.0,0.6089]
[1756601742915,2.4282,4454.2,4454.1,0.6089]
[1756601743119,2.4282,4454.2,4453.9,3.2078]
[1756601743120,0.3693,4454.1,4453.9,3.2078]
[1756601743318,2.3099,4454.2,4453.3,3.4531]
[1756601743319,0.2589,4453.4,4453.3,3.4531]
[1756601743521,0.6282,4453.4,4453.3,3.8167]
[1756601743917,0.6282,4453.4,4453.3,3.2078]
[1756601744323,0.3693,4453.3,4451.9,0.3636]
[1756601744635,0.3693,4453.2,4452.7,3.2078]
[1756601744824,0.251,4453.1,4453.0,0.2453]
[1756601745027,3.2078,4454.1,4453.4,0.2453]
[1756601745327,0.2589,4453.5,4453.4,0.2453]
[1756601745529,0.3693,4453.4,4453.2,0.3636]
[1756601745718,0.6282,4453.3,4452.7,3.2078]
[1756601745925,0.6282,4453.3,4452.7,3.5714]
[1756601746127,0.2589,4453.3,4452.7,3.5714]
[1756601746429,0.3693,4453.4,4452.7,0.3636]
[1756601746628,0.6282,4452.8,4452.7,0.3636]
[1756601746821,0.8792,4452.8,4452.7,0.3636]
[1756601747228,0.8792,4452.8,4452.2,0.3636]
[1756601747530,0.6282,4452.2,4451.6,3.2078]
[1756601747728,0.3693,4452.0,4451.6,3.5714]
[1756601747928,1.8,4454.2,4451.6,3.5714]
[1756601747929,0.3693,4451.8,4451.6,3.5714]
[1756601748125,3.2078,4452.4,4451.6,3.8167]
[1756601748332,0.251,4452.3,4452.2,0.6089]
[1756601748530,0.8792,4452.3,4451.7,0.3636]
[1756601749328,0.2589,4451.7,4451.6,3.2078]
[1756601749529,0.8792,4451.7,4451.6,3.2078]
[1756601750130,0.8792,4451.7,4451.6,3.8167]
[1756601750730,0.251,4451.7,4451.6,3.8167]
[1756601751127,0.251,4452.6,4451.7,0.3636]
[1756601751433,3.4588,4452.6,4451.7,0.3636]
[1756601752225,32.354,4452.8,4452.5,0.2453]
[1756601752431,32.354,4452.8,4452.7,0.6089]
[1756601753937,32.605,4452.8,4452.7,0.6089]
[1756601754534,3.2078,4453.7,4452.7,0.6089]
[1756601754735,0.251,4453.6,4452.9,0.3636]
[1756601755126,3.2078,4453.7,4452.9,0.3636]
[1756601755329,3.2078,4453.7,4453.6,0.3636]
[1756601755535,4.087,4453.7,4453.6,0.3636]
[1756601756331,0.251,4453.7,4453.6,0.6089]
[1756601756532,2.051,4454.2,4454.1,0.6089]
[1756601756733,2.6792,4454.2,4454.1,0.6089]
[1756601757330,0.3693,4454.1,4453.9,0.3636]
[1756601757531,0.3693,4454.1,4454.0,0.6089]
[1756601757732,2.051,4454.2,4454.0,0.2453]
[1756601757935,2.051,4454.2,4454.1,0.6089]
[1756601758136,1.8,4454.2,4454.1,0.6089]
[1756601758335,2.051,4454.2,4454.1,0.6089]
[1756601758939,2.3099,4454.2,4454.1,0.6089]
[1756601759138,0.2589,4453.8,4453.6,0.58482523]
[1756601759341,2.051,4454.2,4454.1,0.6089]
[1756601759342,1.8,4454.2,4454.1,0.6089]
[1756601759542,1.8,4454.2,4454.1,3.8167]
[1756601759832,1.8,4454.2,4454.1,7.8167]
[1756601760641,1.8,4454.2,4454.1,8.22078]
[1756601761332,1.8,4454.2,4454.1,9.02908894]
[1756601761533,1.8,4454.2,4454.1,8.44529]
[1756601761729,1.8,4454.2,4454.1,8.22078]
[1756601761931,1.8,4454.2,4454.1,7.8167]
[1756601762328,1.8,4454.2,4454.1,8.4003029]
[1756601763139,1.8,4454.2,4454.1,4.4003029]
[1756601764232,1.8,4454.2,4454.1,3.8167]
[1756601764441,1.8,4454.2,4454.1,5.39145943]
[1756601764639,1.8,4454.2,4454.1,4.22078]
[1756601765639,1.8,4454.2,4454.1,4.5938101]
[1756601766230,1.8,4454.2,4454.1,3.8167]
[1756601767142,1.8,4454.2,4454.1,4.39938962]
[1756601767337,1.8,4454.2,4454.1,3.8167]
[1756601767740,0.3694,4457.0,4456.4,0.3576]
[1756601767937,0.3694,4456.8,4456.2,0.3576]
[1756601768141,0.6242,4456.3,4456.2,0.5986]
[1756601768339,1.06645835,4457.2,4456.3,0.3576]
[1756601768538,1.3,4458.6,4457.2,0.2599]
[1756601768738,0.2548,4458.4,4458.2,3.2078]
[1756601769037,1.3,4458.6,4458.2,3.7087]
[1756601769238,1.3,4458.6,4458.4,0.2599]
[1756601769444,0.3694,4460.0,4458.5,0.2599]
[1756601769646,0.3694,4461.5,4459.9,3.2078]
[1756601769940,0.3694,4461.1,4459.9,3.4578]
[1756601770137,0.3694,4461.4,4459.9,3.86135]
[1756601770339,0.3694,4461.5,4460.9,3.2078]
[1756601770541,4.82673163,4465.2,4461.4,3.2078]
[1756601770734,1.57260198,4466.2,4464.4,3.2078]
[1756601770934,0.3694,4465.7,4464.6,3.2078]
[1756601771135,3.2078,4466.3,4464.6,3.2078]
[1756601771334,3.2078,4466.5,4464.7,0.25]
[1756601771539,0.18187318,4467.3,4466.1,0.40299]
[1756601771739,0.3694,4468.0,4464.9,10.07768]
[1756601771740,0.00396011,4469.0,4466.5,3.2078]
[1756601771934,0.00396011,4469.0,4468.3,3.2078]
[1756601772134,3.2078,4468.8,4467.8,3.2078]
[1756601772339,0.3694,4468.2,4466.1,3.2078]
[1756601772543,3.2078,4468.0,4466.9,3.2078]
[1756601772748,0.3694,4467.9,4466.9,3.2078]
[1756601772948,3.2078,4467.4,4465.2,3.2078]
[1756601773241,0.3694,4467.9,4467.1,3.2078]
[1756601773447,3.2078,4468.4,4466.9,3.2078]
[1756601773645,1.20320198,4473.6,4464.0,10.07983]
[1756601773646,3.2078,4470.1,4468.4,0.3576]
[1756601773943,2.02366454,4475.8,4467.0,33.60383]
[1756601773944,0.256,4471.2,4469.9,3.2078]
[1756601774144,3.2078,4470.9,4469.1,3.2078]
[1756601774349,1.711,4470.1,4470.0,3.2078]
[1756601774655,32.312,4472.4,4470.0,3.2078]
[1756601774656,0.36362734,4470.2,4470.0,3.2078]
[1756601774850,0.36362734,4470.2,4470.1,0.257]
[1756601775348,0.36362734,4470.2,4470.0,3.2078]
[1756601775349,2.07462734,4470.2,4470.0,3.2078]
[1756601775550,0.36362734,4470.2,4470.0,3.2078]
[1756601775940,0.36362734,4470.2,4470.1,4.66064]
[1756601776149,0.36362734,4470.2,4470.0,3.2078]
[1756601776540,0.3694,4470.1,4470.0,1.4968]
[1756601776843,0.36362734,4470.2,4470.0,1.4968]
[1756601777444,0.36362734,4470.2,4470.0,1.7558]
[1756601777744,0.3694,4470.1,4470.0,1.4968]
[1756601778141,4.094,4470.1,4468.3,0.3576]
[1756601778341,0.259,4470.0,4469.0,3.2078]
[1756601778546,0.3694,4469.9,4468.8,3.2078]
[1756601778748,0.3694,4469.7,4468.9,3.2078]
[1756601779051,0.3694,4469.7,4466.4,10.07454]
[1756601779052,3.2078,4469.3,4467.0,3.2078]
[1756601779254,1.14840768,4469.6,4466.0,3.2078]
[1756601779255,0.3694,4467.8,4466.0,3.2078]
[1756601779545,33.179,4469.2,4464.8,3.2078]
[1756601779546,0.3694,4466.0,4464.8,3.2078]
[1756601779745,0.3694,4465.4,4463.7,3.2078]
[1756601779945,0.3694,4465.4,4462.5,0.26]
[1756601779946,3.2078,4464.5,4463.2,3.2078]
[1756601780151,0.26,4464.4,4463.2,3.2078]
[1756601780343,0.26,4464.4,4462.4,3.2078]
[1756601780344,0.3694,4464.4,4462.4,3.2078]
[1756601780546,0.3694,4464.4,4464.0,3.2078]
[1756601780745,0.089,4467.6,4464.0,3.2078]
[1756601780746,35.4828,4466.2,4464.0,3.2078]
[1756601780943,0.3694,4466.0,4465.3,3.2078]
[1756601781345,0.3694,4466.0,4465.6,3.2078]
[1756601781546,0.3694,4465.9,4464.9,3.2078]
[1756601781841,0.3694,4466.3,4465.7,3.2078]
[1756601782045,0.3694,4467.0,4466.0,3.2078]
[1756601782246,0.26,4466.9,4465.5,3.2078]
[1756601782542,0.26,4466.9,4463.7,10.08076]
[1756601782543,0.4584,4467.6,4466.6,3.2078]
[1756601782744,0.4584,4467.6,4467.5,3.5654]
[1756601782745,0.089,4467.6,4467.5,3.5654]
[1756601782940,0.089,4468.5,4467.5,3.5654]
[1756601783147,0.089,4468.5,4467.5,3.2078]
[1756601783340,0.089,4468.5,4468.0,3.2078]
[1756601783545,0.089,4468.5,4468.1,0.3576]
[1756601783851,0.089,4468.4,4467.5,3.2078]
[1756601784349,0.089,4468.4,4467.6,3.2078]
[1756601784546,0.3694,4468.3,4467.6,3.2078]
[1756601784750,0.089,4468.2,4468.0,3.2078]
[1756601784952,0.089,4468.2,4468.1,0.3576]
[1756601785348,0.089,4468.2,4466.3,32.268]
[1756601785349,4.089,4468.2,4467.5,3.2078]
[1756601785543,0.35,4468.2,4467.5,3.2078]
[1756601785745,0.35,4468.2,4466.3,3.2078]
[1756601786157,0.83302734,4470.2,4468.3,0.3576]
[1756601786449,0.3694,4470.1,4469.3,3.2078]
[1756601786750,0.3694,4470.0,4468.5,3.2078]
[1756601787250,0.3694,4470.0,4469.0,3.2078]
[1756601787644,0.46362734,4470.2,4469.5,3.2078]
[1756601787844,0.3694,4470.1,4469.5,3.2078]
[1756601788550,0.46362734,4470.2,4470.1,0.3576]
[1756601789452,0.46362734,4470.2,4470.0,3.5654]
[1756601789655,0.46362734,4470.2,4470.1,0.3576]
[1756601790451,3.4718,4471.5,4470.1,4.3576]
[1756601790452,3.2078,4471.5,4470.1,4.3576]
[1756601790764,0.264,4472.0,4471.0,3.2078]
[1756601791058,0.3694,4471.9,4470.4,3.2078]
[1756601791455,0.264,4472.0,4470.4,3.2078]
[1756601791456,3.2078,4471.6,4470.4,3.2078]
[1756601791654,3.2078,4471.1,4469.4,3.5654]
[1756601791859,0.264,4471.0,4469.4,3.5654]
[1756601792160,0.3694,4471.7,4470.6,0.3576]
[1756601792348,0.3694,4471.7,4470.9,3.2078]
[1756601792551,0.3694,4471.6,4469.8,3.2078]
[1756601792754,0.3694,4471.6,4470.9,3.2078]
[1756601793260,0.3694,4471.4,4469.8,3.2078]
[1756601793559,0.3694,4471.5,4469.9,3.2078]
[1756601793759,0.3694,4471.5,4470.5,3.2078]
[1756601794555,0.3694,4471.5,4471.0,3.2078]
[1756601794763,3.2078,4471.6,4470.2,3.5654]
[1756601795859,3.4718,4471.6,4470.2,3.5654]
[1756601796054,3.4718,4471.6,4470.2,3.2078]
[1756601796256,3.2078,4471.6,4470.8,0.3576]
[1756601796460,35.4728,4472.2,4471.2,3.2078]
[1756601796662,35.4728,4472.2,4470.8,0.3576]
[1756601796858,0.3694,4472.1,4470.8,0.3576]
[1756601797058,35.4728,4472.2,4470.6,3.2078]
[1756601797366,0.3694,4471.6,4470.6,3.2078]
[1756601797562,0.265,4471.5,4470.6,3.2078]
[1756601797758,3.2078,4471.2,4470.6,3.2078]
[1756601798061,3.2078,4471.2,4470.1,0.3576]
[1756601798062,3.6367,4471.2,4470.1,0.3576]
[1756601798463,3.6367,4471.2,4470.5,3.2078]
[1756601798658,3.6367,4471.2,4470.3,3.2078]
[1756601798855,3.6367,4471.2,4468.2,0.40282]
[1756601798856,3.2078,4471.2,4469.8,3.6415]
[1756601799063,0.4289,4471.0,4469.8,3.6415]
[1756601800167,3.2078,4470.7,4469.8,3.6415]
[1756601800369,0.4289,4470.6,4469.8,3.2078]
[1756601800566,0.264,4470.5,4469.8,3.2078]
[1756601801461,0.4289,4471.3,4470.4,3.2078]
[1756601801662,0.6929,4471.3,4469.9,0.4337]
[1756601801865,0.6929,4471.3,4470.3,3.2078]
[1756601802463,0.6929,4471.3,4468.0,0.58189004]
[1756601802464,0.264,4471.3,4469.6,3.2078]
[1756601802662,0.4289,4470.7,4469.6,3.2078]
[1756601802864,0.264,4470.6,4469.6,3.2078]
[1756601803263,0.264,4470.6,4469.7,0.4337]
[1756601803767,0.4289,4470.5,4469.6,3.2078]
[1756601803963,0.4289,4470.5,4469.7,0.4337]
[1756601804359,3.2078,4470.8,4469.7,0.4337]
[1756601804565,3.2078,4471.9,4470.8,0.4337]
[1756601804761,0.4289,4472.0,4471.2,3.2078]
[1756601804970,0.4289,4472.0,4471.3,0.4337]
[1756601805764,3.4728,4472.4,4471.3,0.4337]
[1756601806066,3.4728,4472.4,4469.5,0.77585339]
[1756601806067,3.2078,4471.8,4469.3,0.58189004]
[1756601806368,3.2078,4471.7,4471.2,1.4048]
[1756601806563,3.2078,4471.7,4470.8,0.193]
[1756601806768,3.2078,4472.2,4471.6,1.4048]
[1756601807069,3.2078,4472.2,4471.8,1.4048]
[1756601807265,3.6367,4472.2,4471.6,1.4048]
[1756601807472,3.2078,4471.7,4471.3,1.4048]
[1756601807864,3.2078,4471.7,4469.7,3.78969004]
[1756601808064,0.28,4471.9,4471.2,1.4048]
[1756601808265,32.231,4473.9,4471.2,1.4048]
[1756601808266,3.2078,4471.8,4471.2,0.4337]
[1756601808573,3.2078,4472.3,4471.2,0.4337]
[1756601808775,3.2078,4472.3,4471.9,0.4337]
[1756601809274,3.2078,4472.3,4471.1,0.279]
[1756601809568,3.2078,4472.3,4470.3,0.4337]
[1756601809569,3.2078,4472.3,4471.8,1.4048]
[1756601809971,3.2078,4472.3,4471.2,0.4337]
[1756601809972,0.4289,4472.2,4471.2,0.4337]
[1756601810174,3.2078,4471.5,4471.4,1.4048]
[1756601810372,3.2078,4471.5,4471.3,1.4048]
[1756601810571,3.2078,4471.5,4470.7,0.279]
[1756601810768,3.2078,4471.5,4470.8,0.4337]
[1756601810966,3.2078,4471.5,4471.4,1.4048]
[1756601811167,3.2078,4471.5,4471.2,1.4048]
[1756601811676,3.6367,4471.5,4471.2,1.4048]
[1756601811973,0.4289,4471.5,4471.2,1.4048]
[1756601813070,0.4289,4471.5,4470.8,0.4337]
[1756601813273,3.2078,4471.1,4470.2,0.4337]
[1756601813567,0.278,4471.0,4470.3,1.4048]
[1756601813770,0.278,4471.0,4470.2,0.4337]
[1756601813970,0.278,4471.0,4470.7,0.4337]
[1756601814170,0.7069,4471.0,4470.6,1.4048]
[1756601814775,0.4289,4470.9,4470.1,0.4337]
[1756601814975,0.278,4471.0,4470.1,0.4337]
[1756601815170,3.2078,4471.1,4470.1,0.4337]
[1756601815371,3.4848,4471.1,4470.1,0.4337]
[1756601815973,3.4848,4471.1,4470.5,1.4048]
[1756601816369,3.4848,4471.1,4470.7,1.4048]
[1756601816571,3.2078,4471.1,4470.1,0.4337]
[1756601816870,3.2078,4471.1,4469.9,0.58189004]
[1756601816871,3.2078,4471.6,4471.0,1.4048]
[1756601817076,3.2078,4471.6,4470.8,0.4337]
[1756601817270,3.2078,4471.6,4471.4,1.4048]
[1756601818770,0.7049,4471.5,4470.8,0.4337]
[1756601818968,3.2078,4471.1,4470.8,1.8385]
[1756601819177,3.2078,4471.1,4470.8,0.4337]
[1756601819777,3.2078,4471.1,4470.4,0.4337]
[1756601820078,3.2078,4471.1,4471.0,0.4337]
[1756601820276,3.2078,4471.1,4470.3,1.01559004]
[1756601820476,3.2078,4470.6,4470.0,0.58189004]
[1756601820774,0.275,4470.6,4470.2,1.4048]
[1756601820984,3.6367,4470.3,4470.2,1.4048]
[1756601821275,3.2078,4470.3,4469.3,0.275]
[1756601821475,3.4828,4471.7,4470.2,0.4337]
[1756601821680,3.4828,4471.7,4470.6,0.4337]
[1756601822272,3.4828,4471.7,4470.1,0.77585339]
[1756601822273,3.2078,4471.1,4470.1,0.57838526]
[1756601822473,0.7039,4471.0,4470.0,0.4337]
[1756601823079,3.2078,4470.6,4470.0,0.4337]
[1756601823279,0.4289,4470.5,4469.6,0.57838526]
[1756601823481,0.4289,4470.5,4469.5,1.01208526]
[1756601823677,0.4289,4470.5,4469.5,0.4337]
[1756601823980,3.4818,4470.6,4469.5,0.4337]
[1756601824387,3.9107,4470.6,4469.5,0.4337]
[1756601824975,3.4818,4470.6,4469.7,3.2078]
[1756601825181,3.4818,4470.6,4469.8,0.4337]
[1756601826069,3.6367,4471.2,4469.8,0.4337]
[1756601826274,3.2078,4471.2,4470.3,0.4337]
[1756601826574,0.273,4471.5,4470.4,0.4337]
[1756601826779,0.273,4471.5,4470.9,3.2078]
[1756601827082,0.273,4471.5,4470.9,0.4337]
[1756601827284,3.2078,4471.3,4470.3,0.273]
[1756601827581,3.2078,4471.3,4470.3,3.4808]
[1756601827778,3.2078,4471.3,4470.3,3.2078]
[1756601827980,3.2078,4471.3,4470.2,0.4337]
[1756601828180,0.441,4471.2,4470.2,0.4337]
[1756601828375,0.273,4471.1,4470.2,0.4337]
[1756601828681,3.2078,4470.8,4469.8,0.57838526]
[1756601828878,3.2078,4470.8,4469.6,2.89916]
[1756601828879,0.441,4470.6,4469.9,0.05988526]
[1756601829079,0.441,4470.6,4467.9,1.55218582]
[1756601829080,3.2078,4469.9,4468.2,0.77211154]